Workbook

Sheet Hoja6
A1: Simulador Presupuestario
A3: Presupuesto Nº
A4: Ingresos Previstos (Valor del Presupuesto) | E4: 133.844,00 | G4: Significación
G5: Calculada | H5: Estandar
A6: Costes Variables Estimados (Materia prima, tinta, etc.) | E6: 73.444,00 | G6: =E6/E4 -> 0.5487283703 | H6: 0.2129012711
A8: Costes No Operativos Variables | C8: 0.02945523937 | E8: =C8*E4 -> 3942.407058
A9: Tot. Costes Fijos o Estructurales | C9: =B18 -> 254 | D9: =E9/C9 -> 49.61329061 | E9: =C18 -> 12601.77581 | G9: =D18 -> 0.09415271371 | H9: 0.7760408552
A10: Horas Estimadas de Trabajo | C10: Nivel de Actividad
C11: [ 100% / 76% ] | E11: [ 75% / 51% ] | G11: [ - 50% ]
A12: Dptos. Operativos | B12: Nº de Hras | C12: Unitario | D12: Total | E12: Unitario | F12: Total | G12: Unitario | H12: Total
A13: Taller I | B13: 100,00 | C13: 47.74549759 | D13: =IF(C13=" "," ",C13*B13) -> 4774.549759 | E13: 59.26276838 | F13: =IF(E13=" "," ",E13*B13) -> 5926.276838 | G13: 82.29730995 | H13: =IF(G13=" "," ",G13*B13) -> 8229.730995
A14: Taller II | B14: 100,00 | C14: 59.37226055 | D14: =IF(C14=" "," ",C14*B14) -> 5937.226055 | E14: 71.80215613 | F14: =IF(E14=" "," ",E14*B14) -> 7180.215613 | G14: 96.6619473 | H14: =IF(G14=" "," ",G14*B14) -> 9666.19473
A15: Taller III | B15: 54,00 | C15: 35 | D15: =IF(C15=" "," ",C15*B15) -> 1890 | E15: 45 | F15: =IF(E15=" "," ",E15*B15) -> 2430 | G15: 55 | H15: =IF(G15=" "," ",G15*B15) -> 2970
C16: =IFERROR(VLOOKUP(#REF!,[1]Indicadores!$AF$37:$AP$40,9)," ") ->  | D16: =IF(C16=" "," ",C16*B16) ->  | E16: =IFERROR(VLOOKUP(#REF!,[1]Indicadores!$AF$37:$AP$40,10)," ") ->  | F16: =IF(E16=" "," ",E16*B16) ->  | G16: =IFERROR(VLOOKUP(#REF!,[1]Indicadores!$AF$37:$AP$40,11)," ") ->  | H16: =IF(G16=" "," ",G16*B16) -> 
C17: =IFERROR(VLOOKUP(#REF!,[1]Indicadores!$AF$37:$AP$40,9)," ") ->  | D17: =IF(C17=" "," ",C17*B17) ->  | E17: =IFERROR(VLOOKUP(#REF!,[1]Indicadores!$AF$37:$AP$40,10)," ") ->  | F17: =IF(E17=" "," ",E17*B17) ->  | G17: =IFERROR(VLOOKUP(#REF!,[1]Indicadores!$AF$37:$AP$40,11)," ") ->  | H17: =IF(G17=" "," ",G17*B17) -> 
A18: Subtotal | B18: =B13+B14+B15 -> 254 | C18: =SUM(D13:D17) -> 12601.77581 | D18: =C18/E4 -> 0.09415271371 | E18: =SUM(F13:F17) -> 15536.49245 | F18: =E18/E4 -> 0.1160791104 | G18: =SUM(H13:H17) -> 20865.92572 | H18: =G18/E4 -> 0.1558973561
A19: = Resultado previsto | C19: =$E$4-$E$6-$E$8-C18 -> 43855.81713 | D19: =C19/E4 -> 0.3276636766 | E19: =$E$4-$E$6-$E$8-E18 -> 40921.10049 | F19: =E19/E4 -> 0.3057372799 | G19: =$E$4-$E$6-$E$8-G18 -> 35591.66722 | H19: =G19/E4 -> 0.2659190342
